fUST/lending_fUST_20260218
["ID","MTS","AMOUNT","RATE_DAILY","PERIOD"]
[405876490,1771379438041,-504.88326704,0.00013273,2]
[405876492,1771379438050,-500.0,0.00013273,2]
[405876494,1771379438060,-500.0,0.00013273,2]
[405876495,1771379438069,-389.56871038,0.00013273,2]
[405876496,1771379438078,-619.87305957,0.00013273,2]
[405876497,1771379438087,-390.03165525,0.00013273,2]
[405876498,1771379438096,-327.68228269,0.00013273,2]
[405876499,1771379438105,-280.12326551,0.00013547,2]
[405876500,1771379438114,-507.47774697,0.00013698,2]
[405876501,1771379438123,-933.837327,0.00013699,2]
[405876502,1771379438132,-603.68370859,0.00013699,2]
[405876503,1771379438142,-445.64970941,0.00013699,2]
[405876504,1771379438151,-500.0,0.00013699,2]
[405876505,1771379438159,-500.0,0.00013699,2]
[405876506,1771379438169,-193.98072769,0.00013699,2]
[405876507,1771379438177,-358.60508541,0.00013699,2]
[405876508,1771379438187,-500.8675487,0.00013699,2]
[405876509,1771379438196,-162.21935436,0.00013699,2]
[405876510,1771379438205,-500.0,0.00013699,2]
[405876511,1771379438214,-509.27743602,0.00013699,2]
[405876512,1771379438223,-343.94385614,0.00013699,2]
[405876513,1771379438232,-500.0,0.00013699,2]
[405876514,1771379438241,-500.0,0.00013699,2]
[405876515,1771379438250,-500.82558043,0.00013699,2]
[405876516,1771379438259,-501.31009266,0.00013699,2]
[405876517,1771379438268,-500.0,0.00013699,2]
[405876518,1771379438276,-500.82197223,0.00013699,2]
[405876519,1771379438285,-500.77179097,0.00013699,2]
[405876520,1771379438294,-500.0,0.00013699,2]
[405876521,1771379438303,-503.93976569,0.00013699,2]
[405876523,1771379438312,-505.05340062,0.00013699,2]
[405876524,1771379438322,-500.0,0.00013699,2]
[405876525,1771379438331,-501.76081954,0.00013699,2]
[405876526,1771379438340,-500.0,0.00013699,2]
[405876528,1771379438349,-500.45005663,0.00013699,2]
[405876530,1771379438358,-3146.29280068,0.00013721,2]
[405876532,1771379438367,-1093.46532825,0.00013821,2]
[405876534,1771379438376,-506.5356159,0.00013821,2]
[405876536,1771379438386,-1006.19785905,0.00013821,2]
[405876538,1771379438395,-1000.0,0.00013821,2]
[405876540,1771379438404,-1000.0,0.00013821,2]
[405876542,1771379438414,-861.7000744,0.00013821,2]
[405876544,1771379438423,-1000.0,0.00014247,2]
[405876546,1771379438432,-582.33091545,0.00014247,2]
[405876548,1771379438441,-538.51420022,0.00014247,2]
[405876550,1771379438451,-753.92206473,0.00014247,2]
[405876552,1771379438460,-573.79875855,0.00014247,2]
[405876554,1771379438469,-235.10039923,0.00014247,2]
[405876556,1771379438478,-1000.0,0.00014247,2]
[405876558,1771379438487,-485.86955161,0.00014247,2]
[405876560,1771379438497,-275.86731225,0.00014247,2]
[405876562,1771379438507,-225.0486051,0.00014364,2]
[405876564,1771379438515,-184.72,0.00014364,4]
[405876566,1771379438525,-1500.0,0.00014368,2]
[405876568,1771379438535,-1096.83798331,0.00014368,2]
[405876570,1771379438547,-309.0,0.00014538,2]
[405876573,1771379438556,-227.6374509,0.00014595,2]
[405876575,1771379438566,-233.0,0.00014599,2]
[405876577,1771379438575,-579.06917162,0.00014795,2]
[405876579,1771379438585,-1592.49280214,0.00014795,2]
[405876581,1771379438595,-9060.75242798,0.00014846,2]
[405876583,1771379438607,-1055.23757202,0.00014846,2]
[405876585,1771379438617,-59451.75741268,0.0001485,2]
[405876587,1771379438626,-2000.0,0.00014916,2]
[405876589,1771379438635,-4493.0050153,0.00015,2]
[405877053,1771379443206,-503.38720161,0.00013699,2]
[405877055,1771379443215,-676.29226592,0.00015,2]
[405877057,1771379443226,-3256.23330091,0.00015,2]
[405877072,1771379443361,-79.73354749,0.00015,2]
[405877338,1771379446317,-1172.25521972,0.00013562,2]
[405877908,1771380089135,6093.0,0.00014,30]
[405877909,1771380100617,-1859.53727144,0.0001267,2]
[405877910,1771380116863,172.6306654,0.00010559,2]
[405877914,1771380341136,-243.59268587,0.00012383,2]
[405877915,1771380360419,23810.11,0.000125,3]
[405877916,1771380403086,-178.23521797,0.00012259,2]
[405877917,1771380427076,-582.22106274,0.00012136,2]
[405877918,1771380484586,284.96,4.995e-05,2]
[405877920,1771380557116,-4417.77893726,0.00012136,2]
[405877921,1771380557136,-596.68029927,0.00012259,2]
[405877922,1771380557154,-2969.779699,0.00012289,2]
[405877923,1771380557173,-56.40731413,0.00012383,2]
[405877924,1771380557192,-150.0,0.000124,2]
[405877925,1771380557211,-601.0,0.00012798,2]
[405877926,1771380559971,214.00022415,0.00012015,2]
[405877927,1771380561092,-4777.93405994,0.00012015,2]
[405877928,1771380561117,-8.06571591,0.00012015,2]
[405877929,1771380561139,-2753.00620056,0.00013173,2]
[405877930,1771380561158,-300.0,0.00013248,2]
[405877931,1771380561177,-151.0,0.00013249,2]
[405877932,1771380561196,-151.0,0.00013249,2]
[405877933,1771380561215,-151.0,0.00013249,2]
[405877934,1771380561234,-151.0,0.00013249,2]
[405877935,1771380561258,-151.0,0.00013249,2]
[405877936,1771380561277,-151.0,0.00013249,2]
[405877937,1771380561297,-151.0,0.00013249,2]
[405877938,1771380561316,-151.0,0.00013249,2]
[405877939,1771380561334,-151.0,0.00013249,2]
[405877940,1771380561352,-151.0,0.00013249,2]
[405877941,1771380561372,-151.0,0.00013249,2]
[405877942,1771380561391,-151.0,0.00013249,2]
[405877943,1771380561411,-166.57422058,0.00013249,2]
[405877944,1771380561429,-506.46840198,0.00013249,2]
[405877945,1771380574090,-414.89259017,0.00013249,2]
[405877976,1771380632134,-1200.0,0.00013116,2]
[405877978,1771380632144,-1134.72941915,0.00013117,2]
[405877994,1771380638096,-2022.38299121,0.00013117,2]
[405877995,1771380638108,-1842.88758964,0.00013117,2]
[405877996,1771380638117,-606.0,0.00013117,2]
[405877997,1771380638127,-177.40426232,0.00013249,2]
[405877998,1771380638136,-300.0,0.00013251,2]
[405877999,1771380638146,-295.0,0.00013251,2]
[405878000,1771380638155,-240.73288968,0.00013252,2]
[405878001,1771380638164,-500.0,0.00013252,2]
[405878002,1771380638173,-500.0,0.00013252,2]
[405878003,1771380638182,-500.0,0.00013252,2]
[405878004,1771380638191,-500.0,0.00013252,2]
[405878005,1771380638200,-500.0,0.00013252,2]
[405878006,1771380638210,-501.46286238,0.00013252,2]
[405878007,1771380638219,-500.0,0.00013252,2]
[405878008,1771380638228,-257.86891766,0.00013252,2]
[405878009,1771380638238,-500.0,0.00013252,2]
[405878010,1771380638247,-506.61210092,0.00013252,2]
[405878011,1771380638256,-500.0,0.00013252,2]
[405878012,1771380638266,-500.0,0.00013252,2]
[405878013,1771380638275,-500.0,0.00013252,2]
[405878014,1771380638284,-500.0,0.00013252,2]
[405878015,1771380638421,-516.68107897,0.00013252,2]
[405878016,1771380638432,-390.29898331,0.00013252,2]
[405878017,1771380638442,-500.0,0.00013252,2]
[405878018,1771380638451,-266.23306802,0.00013252,2]
[405878019,1771380638461,-500.0,0.00013252,2]
[405878020,1771380638470,-313.90893482,0.00013252,2]
[405878021,1771380638480,-500.0,0.00013252,2]
[405878022,1771380638489,-500.0,0.00013252,2]
[405878023,1771380638499,-500.0,0.00013252,2]
[405878024,1771380638508,-500.0,0.00013252,2]
[405878025,1771380638518,-500.0,0.00013252,2]
[405878026,1771380638528,-500.0,0.00013252,2]
[405878027,1771380638537,-500.0,0.00013252,2]
[405878028,1771380638546,-500.0,0.00013252,2]
[405878029,1771380638555,-500.0,0.00013252,2]
[405878030,1771380638564,-504.85191539,0.00013273,2]
[405878031,1771380638574,-500.0,0.00013273,2]
[405878032,1771380638583,-500.0,0.00013273,2]
[405878033,1771380638592,-500.0,0.00013273,2]
[405878034,1771380638601,-502.66378295,0.00013273,2]
[405878035,1771380638611,-500.0,0.00013273,2]
[405878036,1771380638619,-500.0,0.00013273,2]
[405878037,1771380638629,-500.0,0.00013273,2]
[405878038,1771380638638,-500.0,0.00013273,2]
[405878039,1771380638647,-300.0,0.00013673,2]
[405878040,1771380638656,-509.27730438,0.00013698,2]
[405878041,1771380638665,-500.0,0.00013698,2]
[405878042,1771380638674,-545.5874026,0.00013699,2]
[405878043,1771380638683,-363.4432865,0.00013699,2]
[405878044,1771380638693,-500.0,0.00013699,2]
[405878045,1771380638702,-504.0320875,0.00013699,2]
[405878046,1771380638711,-503.65561524,0.00013699,2]
[405878047,1771380638720,-626.76278621,0.00013699,2]
[405878048,1771380638730,-500.0,0.00013699,2]
[405878049,1771380638739,-500.0,0.00013699,2]
[405878050,1771380638749,-500.0,0.00013699,2]
[405878051,1771380638758,-500.0,0.00013699,2]
[405878052,1771380638767,-502.66144424,0.00013699,2]
[405878053,1771380638777,-500.0,0.00013699,2]
[405878054,1771380638786,-500.0,0.00013699,2]
[405878055,1771380638796,-503.81453962,0.00013699,2]
[405878056,1771380638805,-500.0,0.00013699,2]
[405878057,1771380638814,-421.75619558,0.00013699,2]
[405878058,1771380638823,-500.0,0.00013699,2]
[405878059,1771380638833,-500.0,0.00013699,2]
[405878060,1771380638843,-500.0,0.00013699,2]
[405878061,1771380638852,-500.0,0.00013699,2]
[405878062,1771380638861,-500.0,0.0001382,2]
[405878063,1771380638871,-657.10968945,0.00013821,2]
[405878064,1771380638880,-1035.48007766,0.00013821,2]
[405878065,1771380638889,-1008.03343224,0.00013821,2]
[405878066,1771380638899,-1011.7453952,0.00013821,2]
[405878067,1771380638908,-534.69373026,0.00013821,2]
[405878068,1771380638917,-1000.0,0.00013821,2]
[405878069,1771380638926,-1000.0,0.00013821,2]
[405878070,1771380638936,-247.03945251,0.00013853,2]
[405878071,1771380638945,-322.90180235,0.00014221,2]
[405878072,1771380638955,-1000.0,0.00014247,2]
[405878073,1771380638964,-244.41561486,0.00014247,2]
[405878074,1771380638973,-1000.0,0.00014247,2]
[405878075,1771380638983,-373.68207296,0.00014247,2]
[405878076,1771380638991,-505.90833047,0.00014247,2]
[405878077,1771380639000,-61.62186182,0.00014247,2]
[405878078,1771380639095,-444.66901705,0.00014247,2]
[405878079,1771380639104,-1000.0,0.00014247,2]
[405878080,1771380639114,-304.58535569,0.00014368,2]
[405878081,1771380639122,-1500.0,0.00014368,2]
[405878082,1771380639131,-177.0,0.000144,2]
[405878083,1771380639140,-1310.0,0.00014428,2]
[405878084,1771380639150,-473.0,0.00014475,2]
[405878085,1771380639159,-420.0,0.00014528,2]
[405878086,1771380639168,-8557.6433763,0.00014605,2]
[405878087,1771380639178,-5847.456011,0.00014635,2]
[405878088,1771380639187,-414.14787548,0.00014643,2]
[405878089,1771380639196,-515.75657619,0.00014794,2]
[405878090,1771380639205,-1147.47897576,0.00014795,2]
[405878091,1771380639214,-985.37945007,0.00014795,2]
[405878092,1771380639224,-999.11333349,0.00014795,2]
[405878093,1771380639234,-428.24737209,0.00014849,2]
[405878094,1771380639244,-28782.09290589,0.0001485,2]
[405878095,1771380639253,-2654.58605902,0.0001485,2]
[405878096,1771380639263,-164.23074988,0.000149,2]
[405878097,1771380639272,-2000.0,0.00014916,2]
[405878098,1771380639282,-964697.5664466,0.00015,2]
[405878099,1771380639291,-151.0,0.00015,2]
[405878100,1771380639301,-151.0,0.00015,2]
[405878101,1771380639310,-765.5,0.00015,2]
[405878102,1771380639320,-765.5,0.00015,2]
[405878103,1771380639329,-765.5,0.00015,2]
[405878104,1771380639339,-765.5,0.00015,2]
[405878105,1771380639349,-765.5,0.00015,2]
[405878106,1771380639359,-765.5,0.00015,2]
[405878107,1771380639368,-765.5,0.00015,2]
[405878108,1771380639378,-765.5,0.00015,2]
[405878109,1771380639387,-765.5,0.00015,2]
[405878110,1771380639397,-765.5,0.00015,2]
[405878111,1771380639406,-765.5,0.00015,2]
[405878112,1771380639415,-765.5,0.00015,2]
[405878113,1771380639424,-1504.55,0.00015,2]
[405878114,1771380639434,-1467.33170584,0.00015464,2]
[405878115,1771380639446,-310.40026493,0.00015464,2]
[405878116,1771380639457,-100.68268395,0.00015464,2]
[405878117,1771380639470,-587.0,0.00015929,2]
[405878118,1771380639481,-89052.30847673,0.00016274,2]
[405878119,1771380639513,-1092.72739615,0.00016274,2]
[405878691,1771380646009,-500.0,0.00013273,2]
[405878692,1771380646023,-1000.0,0.00013821,2]
[405878694,1771380646032,-150.0,0.00014308,2]
[405878696,1771380646041,-1500.0,0.00014368,2]
[405878698,1771380646050,-2000.0,0.00014916,2]
[405878700,1771380646061,-2500.0,0.00015464,2]
[405878702,1771380646071,-1225.78527624,0.00016012,2]
[405879578,1771381355099,407.6733536,0.000156,120]
[405879588,1771381745170,-294.0,0.00011863,2]
[405879589,1771381745195,-5000.0,0.00011983,2]
[405879590,1771381745218,-150.0,0.00012165,2]
[405879591,1771381755606,339.45662885,0.00011,2]
[405879592,1771381755634,3657.54337115,0.00011,2]
[405879632,1771381832123,-97.50885837,0.00013111,2]
[405879634,1771381832135,-4902.49114163,0.00013111,2]
[405879636,1771381832144,-500.0,0.00013244,2]
[405879638,1771381832153,-500.0,0.00013244,2]
[405879640,1771381832162,-500.0,0.00013272,2]
[405879642,1771381832171,-500.0,0.00013272,2]
[405879644,1771381832180,-511.53276605,0.00013272,2]
[405879646,1771381832188,-500.0,0.00013272,2]
[405879648,1771381832198,-500.0,0.00013272,2]
[405879650,1771381832207,-189.02989833,0.00013272,2]
[405879652,1771381832216,-500.0,0.00013272,2]
[405879654,1771381832225,-500.0,0.00013273,2]
[405879656,1771381832234,-500.0,0.00013273,2]
[405879658,1771381832243,-151.34901802,0.00013673,2]
[405879660,1771381832253,-4151.39027556,0.00013699,2]
[405879662,1771381832262,-648.68421784,0.00013699,2]
[405879663,1771381832271,-505.29295394,0.00013699,2]
[405879664,1771381832280,-441.84339298,0.00013699,2]
[405879665,1771381832288,-505.45800329,0.00013699,2]
[405879666,1771381832297,-577.81615482,0.00013699,2]
[405879667,1771381832306,-500.0,0.00013699,2]
[405879668,1771381832315,-500.0,0.00013699,2]
[405879669,1771381832324,-233.54854323,0.00013699,2]
[405879670,1771381832333,-519.48799971,0.00013699,2]
[405879671,1771381832344,-500.0,0.00013699,2]
[405879672,1771381832353,-551.7186439,0.00013821,2]
[405879673,1771381832368,-519.52915108,0.00013821,2]
[405879674,1771381832377,-177.0,0.00014165,2]
[405879675,1771381832386,-200.0,0.00014247,4]
[405879676,1771381832396,-385.93,0.00014247,4]
[405879677,1771381832406,-505.66888302,0.00014247,2]
[405879678,1771381832415,-480.57577434,0.00014247,2]
[405879679,1771381832425,-158.89520645,0.00014737,2]
[405879680,1771381832437,-1804.12176905,0.00015088,2]
[405879681,1771381832451,-820.97369745,0.00015088,2]
[405879682,1771381832461,-371.21563551,0.00015088,2]
[405879700,1771381838170,-1022.15739019,0.00015088,2]
[405879701,1771381838277,-202.4984627,0.00015088,2]
[405879702,1771381838287,-169.67276122,0.00015585,2]
[405879703,1771381838296,-162.157595,0.000156,2]
[405879704,1771381838306,-204.0,0.00016165,2]
[405879705,1771381838315,-125856.66119837,0.00016274,2]
[405879731,1771381840581,-363.62521566,0.00016274,2]
[405879744,1771381843615,-28.27110883,0.00016274,2]
[405879745,1771381843626,-1535.95,0.00016274,2]
[405879750,1771381846223,-14350.56506989,0.00016274,2]
[405879754,1771381900516,-500.0,0.00013272,2]
[405879755,1771381900535,-500.0,0.00013272,2]
[405879756,1771381900549,-4.34212557,0.00013272,2]
[405879757,1771381947083,459.62984589,0.00012659,2]
[405879758,1771382741138,-232.4534329,0.00011564,2]
[405879759,1771382854102,-458.44218085,0.00011448,2]
[405879760,1771382956110,-339.8731128,0.00011221,2]
[405879761,1771382956130,-5000.0,0.00011334,2]
[405879762,1771382956150,-4541.55781915,0.00011448,2]
[405879763,1771382956171,-300.0,0.00011505,2]
[405879764,1771382956191,-150.0,0.00011506,2]
[405879765,1771382956211,-500.0,0.00011798,2]
[405879766,1771382956230,-235.90590778,0.00011798,2]
[405879767,1771382956249,-187.6699887,0.00011798,2]
[405879768,1771382956268,-500.0,0.00011798,2]
[405879769,1771382956288,-450.35270484,0.00011798,2]
[405879770,1771382956309,-500.0,0.00011798,2]
[405879771,1771382956329,-500.0,0.00011798,2]
[405879772,1771382956351,-500.0,0.00011798,2]
[405879773,1771382956372,-500.0,0.00011798,2]
[405879774,1771382956394,-500.0,0.00011798,2]
[405879775,1771382956413,-456.19541965,0.00011798,2]
[405879776,1771382956433,-500.0,0.00011798,2]
[405879777,1771382956453,-500.0,0.00011798,2]
[405879778,1771382956473,-500.0,0.00011798,2]
[405879779,1771382956493,-500.0,0.00011798,2]
[405879780,1771382956512,-283.82740692,0.00011798,2]
[405879781,1771382957094,-216.17259308,0.00011798,2]
[405879782,1771382975664,427.68917894,0.00013003,2]
[405879809,1771383032296,-653.65860796,0.00013003,2]
[405879812,1771383032307,-896.33579158,0.00013003,2]
[405879842,1771383038400,-1052.49164465,0.00013003,2]
[405879844,1771383038412,-943.065,0.00013003,2]
[405879845,1771383038424,-1026.75977687,0.00013003,2]
[405879846,1771383038434,-863.92774034,0.00013134,2]
[405880340,1771383043963,-25.82815921,0.00013134,2]
[405880488,1771383046349,-4110.24410045,0.00013134,2]
[405880489,1771383046359,-168.51302277,0.00013267,2]
[405880490,1771383046368,-500.0,0.00013273,2]
[405880491,1771383046378,-505.66516554,0.00013273,2]
[405880492,1771383046387,-504.96080406,0.00013273,2]
[405880493,1771383046397,-500.0,0.00013273,2]
[405880494,1771383046406,-567.38717322,0.00013273,2]
[405880495,1771383046419,-173.97860575,0.00013273,2]
[405880496,1771383046429,-177.0,0.00013506,2]
[405880497,1771383046438,-466.918663,0.00013699,2]
[405880498,1771383046447,-394.26529793,0.00013699,2]
[405880499,1771383046457,-501.64974257,0.00013699,2]
[405880500,1771383046466,-425.14418968,0.00013699,2]
[405880501,1771383046476,-500.93911074,0.00013699,2]
[405880502,1771383046485,-503.19022225,0.00013699,2]
[405880503,1771383046495,-504.10747769,0.00013699,2]
[405880504,1771383046505,-504.92646284,0.00013699,2]
[405880505,1771383046514,-162.21935436,0.00013699,2]
[405880507,1771383046523,-501.83965359,0.00013699,2]
[405880508,1771383046532,-503.22887228,0.00013699,2]
[405880509,1771383046541,-287.3116462,0.00013699,2]
[405880510,1771383046550,-441.16919547,0.00013699,2]
[405880511,1771383046560,-500.38171454,0.00013699,2]
[405880512,1771383046569,-244.52963528,0.00013699,2]
[405880513,1771383046578,-511.59296786,0.00013699,2]
[405880514,1771383046586,-500.0,0.00013699,2]
[405880515,1771383046595,-502.603343,0.00013699,2]
[405880516,1771383046606,-501.71719372,0.00013699,2]
[405880517,1771383046615,-125.17748798,0.00013821,2]
[405880518,1771383046626,-874.82251202,0.00013821,2]
[405880520,1771383046634,-407.75307812,0.00013821,2]
[405880521,1771383046643,-511.15444895,0.00014247,2]
[405880522,1771383046652,-1128.90453545,0.00014368,2]
[405880523,1771383046662,-28738.84299065,0.00015,2]
[405880531,1771383134282,136.70877732,0.00011447,2]
[405880532,1771383134306,24.44152322,0.00011447,2]
[405880533,1771383134646,350.83345729,0.00011447,2]
[405880547,1771383936460,8975.91,9e-05,2]
[405880548,1771384136390,10000.0,9e-05,2]
[405880549,1771384145140,-1483.21557456,0.00011848,2]
[405880550,1771384145162,-150.0,0.00011908,2]
[405880551,1771384145185,-4939.73847657,0.00011968,2]
[405880552,1771384157115,-60.26152343,0.00011968,2]
[405880553,1771384157134,-300.0,0.00012497,2]
[405880554,1771384157155,-269.0,0.00012499,2]
[405880555,1771384157174,-1123.0,0.00012499,2]
[405880556,1771384157191,-4056.9878704,0.00012501,2]
[405880557,1771384157209,-500.0,0.00012585,2]
[405880558,1771384157227,-187.93355218,0.00012585,2]
[405880559,1771384157246,-300.0,0.0001284,2]
[405880560,1771384158687,327.80397911,0.00012497,2]
[405880561,1771384161110,-172.19602089,0.00012497,2]
[405880562,1771384161129,-500.0,0.00013273,2]
[405880563,1771384161149,-398.67682734,0.00013273,2]
[405880597,1771384232497,-354.83772694,0.00012497,2]
[405880599,1771384232508,-145.16227306,0.00012497,2]
[405880601,1771384232518,-154.83772694,0.0001314,2]
[405880647,1771384238643,-1338.8803862,0.0001314,2]
[405880658,1771384240968,-564.32379657,0.0001314,2]
[405880683,1771384246645,-1257.42635663,0.0001314,2]
[405880684,1771384246657,-1684.53173366,0.0001314,2]
[405880685,1771384246666,-300.0,0.00013272,2]
[405880686,1771384246676,-101.32317266,0.00013273,2]
[405880687,1771384246685,-205.6078801,0.00013273,2]
[405880688,1771384246694,-500.0,0.00013273,2]
[405880689,1771384246702,-346.82046054,0.00013273,2]
[405880690,1771384808545,632.15596345,0.00011,2]
[405880691,1771384808574,877.45403655,0.00011,2]
[405880692,1771385177228,177.125,0.000125,3]
[405880693,1771385241111,-184.5668404,0.00012497,2]
[405880694,1771385243122,-174.64551193,0.00012497,2]
[405880695,1771385306793,697.66070018,0.0001,7]
[405880696,1771385320398,200.0,8e-05,7]
[405880697,1771385358084,-4640.78764767,0.00012497,2]
[405880698,1771385358105,-150.0,0.0001256,2]
[405880699,1771385358125,-3878.3298997,0.00012623,2]
[405880700,1771385358146,-300.0,0.00012781,2]
[405880701,1771385358165,-1810.29237749,0.00012782,2]
[405880702,1771385369098,-3.82835465,0.00012782,2]
[405880703,1771385369123,-500.0,0.00012782,2]
[405880704,1771385369143,-500.0,0.00012782,2]
[405880705,1771385369163,-500.0,0.00012782,2]
[405880706,1771385369184,-500.0,0.00012782,2]
[405880707,1771385369203,-500.0,0.00012782,2]
[405880708,1771385369222,-214.02209273,0.00012782,2]
[405880709,1771385369243,-500.0,0.00012782,2]
[405880710,1771385369262,-500.0,0.00012782,2]
[405880711,1771385369286,-500.0,0.00012782,2]
[405880712,1771385369308,-393.12581125,0.00012782,2]
[405880713,1771385369336,-274.34634209,0.00012782,2]
[405880714,1771385369364,-500.0,0.00012782,2]
[405880715,1771385369384,-500.0,0.00012782,2]
[405880716,1771385369406,-500.0,0.00012782,2]
[405880717,1771385369427,-500.0,0.00012782,2]
[405880718,1771385369448,-500.0,0.00012782,2]
[405880719,1771385369469,-525.7693109,0.00012782,2]
[405880720,1771385369491,-512.12695495,0.00012782,2]
[405880721,1771385369511,-500.0,0.00012782,2]
[405880722,1771385369530,-554.24869474,0.00012782,2]
[405880723,1771385369550,-500.0,0.00012782,2]
[405880724,1771385369569,-500.0,0.00012782,2]
[405880725,1771385369589,-500.0,0.00012782,2]
[405880726,1771385369610,-500.0,0.00012782,2]
[405880727,1771385369632,-500.0,0.00012782,2]
[405880728,1771385369651,-500.0,0.0001296,2]
[405880729,1771385369672,-500.0,0.00013273,2]
[405880730,1771385369693,-41.55376306,0.00013273,2]
[405880731,1771385378219,225.08547899,0.00012781,2]
[405880732,1771385379306,599.23620125,0.00012781,2]
[405880733,1771385379333,228.24985497,0.00012781,2]
[405880769,1771385431616,-1078.08916142,0.0001314,2]
[405880776,1771385431714,-141.34358003,0.0001314,2]
[405880778,1771385431725,-3780.56725855,0.0001314,2]
[405880780,1771385431734,-171.0,0.00013272,2]
[405880781,1771385431743,-573.63544596,0.00013273,2]
[405880783,1771385431752,-463.43328444,0.00013273,2]
[405880785,1771385431761,-157.76336211,0.00013273,2]
[405880786,1771385431771,-258.53462447,0.00013273,2]
[405880787,1771385431779,-500.0,0.00013273,2]
[405880789,1771385431789,-500.0,0.00013273,2]
[405880791,1771385431798,-500.0,0.00013273,2]
[405880792,1771385431807,-500.0,0.00013699,2]
[405880793,1771385431816,-200.0,0.00013699,4]
[405880794,1771385431825,-507.69988857,0.00013699,2]
[405880809,1771385437722,-118.42718814,0.00013699,2]
[405880810,1771385437732,-405.42139715,0.00013699,2]
[405880811,1771385437741,-500.0,0.00013699,2]
[405880812,1771385437751,-500.91787427,0.00013699,2]
[405880813,1771385437759,-438.16441978,0.00013699,2]
[405880814,1771385437769,-620.95382533,0.00013821,2]
[405880815,1771385437778,-1000.0,0.00013821,2]
[405880816,1771385437787,-298.30960903,0.00013821,2]
[405880817,1771385437796,-225.23843434,0.00013824,2]
[405880818,1771385437805,-200.0,0.00013835,4]
[405880819,1771385437814,-898.28639906,0.00013935,2]
[405880820,1771385437825,-4151.92692754,0.00013935,2]
[405880821,1771385437834,-500.0,0.00014192,2]
[405880822,1771385437843,-1000.0,0.00014247,2]
[405880823,1771385437852,-1000.0,0.00014247,2]
[405880824,1771385437861,-200.0,0.00014334,4]
[405880825,1771385437870,-507.40121167,0.00014368,2]
[405880826,1771385437879,-177.0,0.0001456,2]
[405880827,1771385437889,-500.0,0.0001464,2]
[405880828,1771385437897,-1500.0,0.00014795,2]
[405880829,1771385437906,-503.17487649,0.00014795,2]
[405880830,1771385437915,-10661.6801474,0.00015,2]
[405880831,1771385437926,-13620.17391331,0.00015,2]
[405880832,1771385437937,-41979.30294864,0.00015,2]
[405880833,1771385437945,-255.0,0.00015202,2]
[405880834,1771385437954,-1408.16353977,0.00015342,2]
[405880835,1771385437963,-173.80341506,0.000156,2]
[405880836,1771385437972,-160.0,0.0001563,3]
[405880837,1771385437981,-161.18552717,0.0001563,5]
[405880838,1771385437990,-7755.75693398,0.00015654,2]
[405880839,1771385437999,-1126.8549083,0.00015701,2]
[405880840,1771385438008,-251.4353161,0.00016095,2]
[405880841,1771385438017,-200.0,0.00016167,5]
[405880842,1771385438026,-287.0,0.000162,2]
[405880843,1771385438035,-325.0,0.00016269,2]
[405880844,1771385438045,-45464.95605191,0.00016274,2]
[405880876,1771385439947,-500.0,0.00013699,2]
[405880878,1771385439956,-500.0,0.00013699,2]
[405880880,1771385439966,-500.0,0.00013699,2]
[405880882,1771385439975,-63.24648216,0.00013699,2]
[405881192,1771385443200,-370.51453048,0.00013562,2]
[405881195,1771385443212,-658.83621924,0.00013562,2]
[405881197,1771385443223,-2099.0,0.00013562,2]
[405881277,1771385445748,-1871.64925028,0.00013562,2]
[405881278,1771385445758,-436.75351784,0.00013699,2]
[405881279,1771385445767,-313.81654831,0.00013699,2]
[405881280,1771385445776,-38526.99789252,0.00016274,2]
[405881281,1771385445802,-794.41443861,0.00016274,2]
[405881282,1771385445813,-3227.46198402,0.00016274,2]